[Event "Titled Tuesday Blitz February 22 Early 2022"]
[White "Omariev, Maksim"]
[Black "Mikhailovsky, Vladimir"]
[WhiteFideId "4193423"]
[BlackFideId "34105414"]
[WhiteElo "2505"]
[BlackElo "2371"]
[Result "0-1"]
[Round "04"]
[TimeControl "180+1"]
[Date "2022.02.22"]
[WhiteClock "0:00:03"]
[BlackClock "0:00:11"]

1. g4 {[%clk 0:03:00]}  h5 {[%clk 0:02:59]} 2. g5 {[%clk 0:02:59]}  g6 {[%clk 0:02:58]} 3. Bg2 {[%clk 0:02:59]}  d5 {[%clk 0:02:58]} 4. d4 {[%clk 0:02:59]}  Bg7 {[%clk 0:02:57]} 5. Nf3 {[%clk 0:02:58]}  c5 {[%clk 0:02:51]} 6. c3 {[%clk 0:02:52]}  Nc6 {[%clk 0:02:51]} 7. dxc5 {[%clk 0:02:43]}  e5 {[%clk 0:02:50]} 8. b4 {[%clk 0:02:38]}  e4 {[%clk 0:02:47]} 9. Nd4 {[%clk 0:02:37]}  a5 {[%clk 0:02:45]} 10. b5 {[%clk 0:02:31]}  Nxd4 {[%clk 0:02:28]} 11. cxd4 {[%clk 0:02:30]}  Ne7 {[%clk 0:02:28]} 12. Bf4 {[%clk 0:02:22]}  Nf5 {[%clk 0:02:12]} 13. e3 {[%clk 0:02:21]}  Nh4 {[%clk 0:02:08]} 14. Rg1 {[%clk 0:02:15]}  Bg4 {[%clk 0:02:07]} 15. Qa4 {[%clk 0:02:05]}  O-O {[%clk 0:02:06]} 16. Nc3 {[%clk 0:01:37]}  Rc8 {[%clk 0:02:04]} 17. Qb3 {[%clk 0:01:33]}  a4 {[%clk 0:01:49]} 18. Nxa4 {[%clk 0:01:29]}  Qa5+ {[%clk 0:01:46]} 19. Kf1 {[%clk 0:01:18]}  Qd2 {[%clk 0:01:40]} 20. Re1 {[%clk 0:00:39]}  f6 {[%clk 0:00:53]} 21. Nb6 {[%clk 0:00:32]}  fxg5 {[%clk 0:00:50]} 22. Bg3 {[%clk 0:00:33]}  Rxf2+ {[%clk 0:00:36]} 23. Bxf2 {[%clk 0:00:32]}  Rf8 {[%clk 0:00:17]} 24. Qxd5+ {[%clk 0:00:08]}  Kh7 {[%clk 0:00:17]} 25. Bf3 {[%clk 0:00:03]}  Rxf3 {[%clk 0:00:12]} 26. Re2 {[%clk 0:00:02]}  Rxf2+ {[%clk 0:00:11]} 27. Kxf2 {[%clk 0:00:02]}  Qxe2+ {[%clk 0:00:11]} 28. Kg3 {[%clk 0:00:03]}  Qf3# {[%clk 0:00:11]} 0-1


[Site "https://www.chess.com"]

[Event "Titled Tuesday Blitz February 22 Early 2022"]
[White "Orozbaev, Eldiar"]
[Black "Al-Tarboush, Ward"]
[WhiteFideId "13802240"]
[BlackFideId "7601450"]
[WhiteElo "2768"]
[BlackElo "2530"]
[Result "1-0"]
[Round "04"]
[TimeControl "180+1"]
[Date "2022.02.22"]
[WhiteClock "0:00:22"]
[BlackClock "0:00:06"]

1. e4 {[%clk 0:02:42]}  e6 {[%clk 0:02:58]} 2. d4 {[%clk 0:02:41]}  d5 {[%clk 0:02:59]} 3. exd5 {[%clk 0:02:42]}  exd5 {[%clk 0:02:59]} 4. Bd3 {[%clk 0:02:41]}  Nc6 {[%clk 0:03:00]} 5. Ne2 {[%clk 0:02:41]}  Bd6 {[%clk 0:02:57]} 6. Nbc3 {[%clk 0:02:41]}  Nb4 {[%clk 0:02:57]} 7. Bf4 {[%clk 0:02:40]}  Nxd3+ {[%clk 0:02:55]} 8. Qxd3 {[%clk 0:02:39]}  Ne7 {[%clk 0:02:56]} 9. O-O-O {[%clk 0:02:35]}  Bf5 {[%clk 0:02:55]} 10. Qg3 {[%clk 0:02:33]}  Bxf4+ {[%clk 0:02:52]} 11. Nxf4 {[%clk 0:02:34]}  O-O {[%clk 0:02:51]} 12. h4 {[%clk 0:02:30]}  c6 {[%clk 0:02:51]} 13. h5 {[%clk 0:02:28]}  h6 {[%clk 0:02:48]} 14. Qf3 {[%clk 0:02:20]}  b5 {[%clk 0:02:46]} 15. g4 {[%clk 0:02:11]}  Bh7 {[%clk 0:02:46]} 16. Rdg1 {[%clk 0:02:12]}  b4 {[%clk 0:02:46]} 17. Nd1 {[%clk 0:02:12]}  Be4 {[%clk 0:02:45]} 18. Qg3 {[%clk 0:02:06]}  Bxh1 {[%clk 0:02:45]} 19. Rxh1 {[%clk 0:02:07]}  Qd6 {[%clk 0:02:42]} 20. Ng6 {[%clk 0:01:59]}  Qf6 {[%clk 0:02:23]} 21. Nxf8 {[%clk 0:01:53]}  Rxf8 {[%clk 0:02:20]} 22. Re1 {[%clk 0:01:53]}  Nc8 {[%clk 0:02:16]} 23. Ne3 {[%clk 0:01:49]}  Qxd4 {[%clk 0:02:15]} 24. Nf5 {[%clk 0:01:48]}  Qf6 {[%clk 0:02:14]} 25. f4 {[%clk 0:01:38]}  a5 {[%clk 0:02:14]} 26. Re5 {[%clk 0:01:36]}  Nd6 {[%clk 0:01:55]} 27. Ne7+ {[%clk 0:01:35]}  Kh8 {[%clk 0:01:52]} 28. g5 {[%clk 0:01:29]}  hxg5 {[%clk 0:01:51]} 29. fxg5 {[%clk 0:01:30]}  Qf1+ {[%clk 0:01:46]} 30. Re1 {[%clk 0:01:29]}  Ne4 {[%clk 0:01:46]} 31. Rxf1 {[%clk 0:01:22]}  Nxg3 {[%clk 0:01:46]} 32. Rf3 {[%clk 0:01:22]}  Ne4 {[%clk 0:01:37]} 33. Ng6+ {[%clk 0:01:17]}  fxg6 {[%clk 0:01:25]} 34. Rxf8+ {[%clk 0:01:18]}  Kh7 {[%clk 0:01:26]} 35. hxg6+ {[%clk 0:01:11]}  Kxg6 {[%clk 0:01:27]} 36. Rc8 {[%clk 0:01:11]}  c5 {[%clk 0:01:27]} 37. Rc7 {[%clk 0:01:08]}  a4 {[%clk 0:01:22]} 38. a3 {[%clk 0:01:02]}  bxa3 {[%clk 0:01:19]} 39. bxa3 {[%clk 0:01:03]}  d4 {[%clk 0:01:18]} 40. Ra7 {[%clk 0:00:54]}  Nc3 {[%clk 0:01:12]} 41. Kd2 {[%clk 0:00:47]}  c4 {[%clk 0:00:49]} 42. Ra5 {[%clk 0:00:35]}  Kh5 {[%clk 0:00:37]} 43. Ke1 {[%clk 0:00:25]}  Kg4 {[%clk 0:00:16]} 44. g6 {[%clk 0:00:23]}  d3 {[%clk 0:00:07]} 45. cxd3 {[%clk 0:00:22]}  cxd3 {[%clk 0:00:08]} 46. Kd2 {[%clk 0:00:22]}  Ne4+ {[%clk 0:00:07]} 47. Kxd3 {[%clk 0:00:22]}  Kf4 {[%clk 0:00:06]} 48. Rxa4 {[%clk 0:00:22]} 1-0


[Site "https://www.chess.com"]

[Event "Titled Tuesday Blitz February 22 Early 2022"]
[White "Palu, Andres"]
[Black "Toncheva, Nadya"]
[WhiteFideId "119288"]
[BlackFideId "2924056"]
[WhiteElo "2050"]
[BlackElo "1920"]
[Result "1-0"]
[Round "04"]
[TimeControl "180+1"]
[Date "2022.02.22"]
[WhiteClock "0:00:28"]
[BlackClock "0:00:05"]

1. e4 {[%clk 0:03:00]}  d5 {[%clk 0:02:56]} 2. exd5 {[%clk 0:03:00]}  Qxd5 {[%clk 0:02:57]} 3. Nc3 {[%clk 0:03:00]}  Qa5 {[%clk 0:02:57]} 4. d4 {[%clk 0:03:01]}  c6 {[%clk 0:02:57]} 5. Bc4 {[%clk 0:03:01]}  Nf6 {[%clk 0:02:58]} 6. Nf3 {[%clk 0:03:02]}  Bg4 {[%clk 0:02:58]} 7. h3 {[%clk 0:03:01]}  Bh5 {[%clk 0:02:58]} 8. g4 {[%clk 0:03:01]}  Bg6 {[%clk 0:02:59]} 9. Bd2 {[%clk 0:03:02]}  Qc7 {[%clk 0:02:58]} 10. Qe2 {[%clk 0:03:02]}  e6 {[%clk 0:02:58]} 11. Ne5 {[%clk 0:03:00]}  Nbd7 {[%clk 0:02:13]} 12. h4 {[%clk 0:02:53]}  Bd6 {[%clk 0:02:10]} 13. h5 {[%clk 0:02:37]}  Bxc2 {[%clk 0:02:06]} 14. Nxf7 {[%clk 0:02:38]}  O-O {[%clk 0:01:45]} 15. Nxd6 {[%clk 0:02:26]}  Qxd6 {[%clk 0:01:39]} 16. Qxe6+ {[%clk 0:01:59]}  Qxe6+ {[%clk 0:01:28]} 17. Bxe6+ {[%clk 0:01:59]}  Kh8 {[%clk 0:01:29]} 18. Be3 {[%clk 0:01:54]}  Rae8 {[%clk 0:01:25]} 19. Bxd7 {[%clk 0:01:54]}  Nxd7 {[%clk 0:01:24]} 20. Kd2 {[%clk 0:01:55]}  Be4 {[%clk 0:01:21]} 21. Nxe4 {[%clk 0:01:52]}  Rxe4 {[%clk 0:01:21]} 22. h6 {[%clk 0:01:53]}  g6 {[%clk 0:01:20]} 23. g5 {[%clk 0:01:53]}  Nb6 {[%clk 0:01:19]} 24. Kd3 {[%clk 0:01:53]}  Re7 {[%clk 0:01:11]} 25. a4 {[%clk 0:01:48]}  Nd5 {[%clk 0:01:04]} 26. Rh3 {[%clk 0:01:46]}  Rf4 {[%clk 0:00:30]} 27. a5 {[%clk 0:01:31]}  a6 {[%clk 0:00:29]} 28. Rah1 {[%clk 0:01:26]}  Rg4 {[%clk 0:00:27]} 29. Re1 {[%clk 0:01:17]}  Nf4+ {[%clk 0:00:22]} 30. Bxf4 {[%clk 0:01:16]}  Rxe1 {[%clk 0:00:23]} 31. Be5+ {[%clk 0:01:12]}  Kg8 {[%clk 0:00:22]} 32. Rf3 {[%clk 0:01:09]}  Rxg5 {[%clk 0:00:21]} 33. Rf6 {[%clk 0:00:59]}  Rf5 {[%clk 0:00:20]} 34. Rd6 {[%clk 0:00:57]}  Rfxe5 {[%clk 0:00:19]} 35. dxe5 {[%clk 0:00:55]}  Rd1+ {[%clk 0:00:19]} 36. Kc4 {[%clk 0:00:42]}  Re1 {[%clk 0:00:12]} 37. Rd8+ {[%clk 0:00:29]}  Kf7 {[%clk 0:00:12]} 38. Rd7+ {[%clk 0:00:29]}  Ke6 {[%clk 0:00:12]} 39. Rxh7 {[%clk 0:00:30]}  Rxe5 {[%clk 0:00:11]} 40. Rxb7 {[%clk 0:00:30]}  Rxa5 {[%clk 0:00:11]} 41. h7 {[%clk 0:00:30]}  Rh5 {[%clk 0:00:11]} 42. Kd4 {[%clk 0:00:30]}  Kd6 {[%clk 0:00:10]} 43. Ke4 {[%clk 0:00:30]}  Rh4+ {[%clk 0:00:10]} 44. Kf3 {[%clk 0:00:29]}  Ke5 {[%clk 0:00:10]} 45. Kg3 {[%clk 0:00:29]}  Rh5 {[%clk 0:00:10]} 46. f4+ {[%clk 0:00:29]}  Kd4 {[%clk 0:00:10]} 47. Kg4 {[%clk 0:00:28]}  Rh1 {[%clk 0:00:06]} 48. Kg5 {[%clk 0:00:28]}  Ke4 {[%clk 0:00:06]} 49. Rf7 {[%clk 0:00:27]}  Rg1+ {[%clk 0:00:05]} 50. Kh6 {[%clk 0:00:28]}  Rh1+ {[%clk 0:00:05]} 51. Kg7 {[%clk 0:00:28]}  g5 {[%clk 0:00:05]} 52. fxg5 {[%clk 0:00:28]} 1-0


[Site "https://www.chess.com"]

[Event "Titled Tuesday Blitz February 22 Early 2022"]
[White "Papasimakopoulos, Alexandros"]
[Black "Makhnev, Denis"]
[WhiteFideId "4244125"]
[BlackFideId "13707647"]
[WhiteElo "2340"]
[BlackElo "2491"]
[Result "0-1"]
[Round "04"]
[TimeControl "180+1"]
[Date "2022.02.22"]
[WhiteClock "0:00:07"]
[BlackClock "0:00:06"]

1. d4 {[%clk 0:02:58]}  Nf6 {[%clk 0:02:59]} 2. c4 {[%clk 0:02:58]}  e6 {[%clk 0:03:00]} 3. Nc3 {[%clk 0:02:58]}  Bb4 {[%clk 0:03:00]} 4. Qc2 {[%clk 0:02:56]}  d5 {[%clk 0:03:00]} 5. cxd5 {[%clk 0:02:56]}  Qxd5 {[%clk 0:02:59]} 6. Nf3 {[%clk 0:02:56]}  Qf5 {[%clk 0:02:59]} 7. Qxf5 {[%clk 0:02:56]}  exf5 {[%clk 0:03:00]} 8. a3 {[%clk 0:02:57]}  Bd6 {[%clk 0:02:58]} 9. Nb5 {[%clk 0:02:57]}  Be6 {[%clk 0:02:55]} 10. Nxd6+ {[%clk 0:02:57]}  cxd6 {[%clk 0:02:55]} 11. Bf4 {[%clk 0:02:56]}  Kd7 {[%clk 0:02:55]} 12. e3 {[%clk 0:02:57]}  Nc6 {[%clk 0:02:55]} 13. Bd3 {[%clk 0:02:57]}  h6 {[%clk 0:02:55]} 14. h4 {[%clk 0:02:54]}  Rac8 {[%clk 0:02:42]} 15. Ke2 {[%clk 0:02:48]}  Rhe8 {[%clk 0:02:07]} 16. Rhc1 {[%clk 0:02:45]}  Nd5 {[%clk 0:01:58]} 17. Bh2 {[%clk 0:02:45]}  f4 {[%clk 0:01:52]} 18. e4 {[%clk 0:02:35]}  Bf5 {[%clk 0:01:51]} 19. Ne5+ {[%clk 0:02:26]}  dxe5 {[%clk 0:01:42]} 20. exf5 {[%clk 0:02:13]}  Nxd4+ {[%clk 0:01:07]} 21. Kf1 {[%clk 0:02:14]}  Rxc1+ {[%clk 0:01:07]} 22. Rxc1 {[%clk 0:02:13]}  Rc8 {[%clk 0:01:08]} 23. Rd1 {[%clk 0:02:08]}  Kd6 {[%clk 0:01:03]} 24. g3 {[%clk 0:02:08]}  Ke7 {[%clk 0:00:30]} 25. gxf4 {[%clk 0:01:56]}  Nxf4 {[%clk 0:00:26]} 26. Be4 {[%clk 0:01:50]}  Nc6 {[%clk 0:00:19]} 27. Bxf4 {[%clk 0:01:43]}  exf4 {[%clk 0:00:19]} 28. Kg2 {[%clk 0:01:43]}  Ne5 {[%clk 0:00:13]} 29. Rd5 {[%clk 0:01:21]}  f6 {[%clk 0:00:12]} 30. Rd4 {[%clk 0:01:14]}  b6 {[%clk 0:00:10]} 31. Bb7 {[%clk 0:00:54]}  Rc4 {[%clk 0:00:10]} 32. Rd2 {[%clk 0:00:51]}  f3+ {[%clk 0:00:10]} 33. Bxf3 {[%clk 0:00:50]}  Rxh4 {[%clk 0:00:10]} 34. Bd5 {[%clk 0:00:44]}  Rf4 {[%clk 0:00:09]} 35. Be6 {[%clk 0:00:41]}  g5 {[%clk 0:00:05]} 36. Rc2 {[%clk 0:00:40]}  Kd6 {[%clk 0:00:04]} 37. Rd2+ {[%clk 0:00:41]}  Kc6 {[%clk 0:00:03]} 38. Rc2+ {[%clk 0:00:41]}  Kb7 {[%clk 0:00:04]} 39. b4 {[%clk 0:00:33]}  b5 {[%clk 0:00:03]} 40. Rc8 {[%clk 0:00:20]}  Ng4 {[%clk 0:00:02]} 41. f3 {[%clk 0:00:19]}  Ne3+ {[%clk 0:00:02]} 42. Kg3 {[%clk 0:00:18]}  Nxf5+ {[%clk 0:00:03]} 43. Kf2 {[%clk 0:00:14]}  Nd4 {[%clk 0:00:03]} 44. Bd7 {[%clk 0:00:13]}  Rxf3+ {[%clk 0:00:03]} 45. Kg2 {[%clk 0:00:13]}  Rxa3 {[%clk 0:00:04]} 46. Rf8 {[%clk 0:00:13]}  Rf3 {[%clk 0:00:04]} 47. Rf7 {[%clk 0:00:13]}  Kb6 {[%clk 0:00:03]} 48. Rf8 {[%clk 0:00:13]}  Rf4 {[%clk 0:00:04]} 49. Be8 {[%clk 0:00:13]}  a5 {[%clk 0:00:03]} 50. bxa5+ {[%clk 0:00:13]}  Kxa5 {[%clk 0:00:04]} 51. Rf7 {[%clk 0:00:13]}  Kb4 {[%clk 0:00:05]} 52. Rb7 {[%clk 0:00:14]}  h5 {[%clk 0:00:05]} 53. Bxh5 {[%clk 0:00:13]}  Kc3 {[%clk 0:00:04]} 54. Bf7 {[%clk 0:00:14]}  b4 {[%clk 0:00:04]} 55. Rc7+ {[%clk 0:00:15]}  Kd2 {[%clk 0:00:04]} 56. Rc4 {[%clk 0:00:14]}  Ne2 {[%clk 0:00:04]} 57. Rc6 {[%clk 0:00:12]}  Nc3 {[%clk 0:00:04]} 58. Rb6 {[%clk 0:00:13]}  Ke3 {[%clk 0:00:05]} 59. Kg3 {[%clk 0:00:13]}  Ne2+ {[%clk 0:00:05]} 60. Kg2 {[%clk 0:00:13]}  g4 {[%clk 0:00:05]} 61. Bd5 {[%clk 0:00:11]}  g3 {[%clk 0:00:05]} 62. Re6+ {[%clk 0:00:10]}  Kd2 {[%clk 0:00:05]} 63. Bc6 {[%clk 0:00:09]}  Rf2+ {[%clk 0:00:05]} 64. Kh3 {[%clk 0:00:09]}  Rh2+ {[%clk 0:00:04]} 65. Kg4 {[%clk 0:00:09]}  g2 {[%clk 0:00:05]} 66. Bxg2 {[%clk 0:00:09]}  Rxg2+ {[%clk 0:00:06]} 67. Kf3 {[%clk 0:00:08]}  Nd4+ {[%clk 0:00:05]} 68. Kxg2 {[%clk 0:00:07]}  Nxe6 {[%clk 0:00:06]} 0-1


[Site "https://www.chess.com"]

[Event "Titled Tuesday Blitz February 22 Early 2022"]
[White "Pesotskiy, Mikhail"]
[Black "Magallanes, Rey Jomar"]
[WhiteFideId "34164453"]
[BlackFideId "5205948"]
[WhiteElo "2010"]
[BlackElo "2229"]
[Result "1-0"]
[Round "04"]
[TimeControl "180+1"]
[Date "2022.02.22"]
[WhiteClock "0:02:41"]
[BlackClock "0:01:43"]

1. d4 {[%clk 0:02:59]}  d5 {[%clk 0:02:59]} 2. c4 {[%clk 0:02:59]}  e6 {[%clk 0:02:59]} 3. Nc3 {[%clk 0:02:59]}  Nf6 {[%clk 0:02:59]} 4. cxd5 {[%clk 0:02:59]}  exd5 {[%clk 0:02:58]} 5. Bg5 {[%clk 0:03:00]}  Be7 {[%clk 0:02:57]} 6. e3 {[%clk 0:03:00]}  h6 {[%clk 0:02:56]} 7. Bh4 {[%clk 0:02:59]}  Nc6 {[%clk 0:02:55]} 8. Bd3 {[%clk 0:02:58]}  Be6 {[%clk 0:02:52]} 9. h3 {[%clk 0:02:57]}  Qd7 {[%clk 0:02:48]} 10. a3 {[%clk 0:02:55]}  Ne4 {[%clk 0:02:46]} 11. Bxe7 {[%clk 0:02:54]}  Nxc3 {[%clk 0:02:44]} 12. bxc3 {[%clk 0:02:52]}  Qxe7 {[%clk 0:02:41]} 13. Nf3 {[%clk 0:02:53]}  O-O-O {[%clk 0:02:39]} 14. Qa4 {[%clk 0:02:51]}  g5 {[%clk 0:02:37]} 15. Rb1 {[%clk 0:02:50]}  h5 {[%clk 0:02:32]} 16. Bb5 {[%clk 0:02:48]}  g4 {[%clk 0:02:29]} 17. Bxc6 {[%clk 0:02:44]}  bxc6 {[%clk 0:02:22]} 18. Ne5 {[%clk 0:02:44]}  Rd6 {[%clk 0:01:44]} 19. Qa6+ {[%clk 0:02:40]}  Kd8 {[%clk 0:01:44]} 20. Rb8+ {[%clk 0:02:41]}  Bc8 {[%clk 0:01:43]} 21. Qxc8# {[%clk 0:02:41]} 1-0


[Site "https://www.chess.com"]

[Event "Titled Tuesday Blitz February 22 Early 2022"]
[White "Piesik, Piotr"]
[Black "Maze, Sebastien"]
[WhiteFideId "1136194"]
[BlackFideId "613762"]
[WhiteElo "2232"]
[BlackElo "2462"]
[Result "0-1"]
[Round "04"]
[TimeControl "180+1"]
[Date "2022.02.22"]
[WhiteClock "0:01:51"]
[BlackClock "0:01:42"]

1. Nf3 {[%clk 0:02:59]}  Nf6 {[%clk 0:02:59]} 2. g3 {[%clk 0:02:59]}  g6 {[%clk 0:02:57]} 3. Bg2 {[%clk 0:02:59]}  Bg7 {[%clk 0:02:58]} 4. O-O {[%clk 0:03:00]}  O-O {[%clk 0:02:59]} 5. d4 {[%clk 0:03:00]}  d6 {[%clk 0:02:59]} 6. Nbd2 {[%clk 0:03:00]}  d5 {[%clk 0:02:58]} 7. c4 {[%clk 0:03:00]}  c6 {[%clk 0:02:56]} 8. Qb3 {[%clk 0:02:59]}  a5 {[%clk 0:02:51]} 9. Rd1 {[%clk 0:02:52]}  b5 {[%clk 0:02:38]} 10. cxb5 {[%clk 0:02:50]}  cxb5 {[%clk 0:02:38]} 11. Ne5 {[%clk 0:02:46]}  e6 {[%clk 0:02:30]} 12. Ndf3 {[%clk 0:02:43]}  Ne4 {[%clk 0:02:21]} 13. Bf4 {[%clk 0:02:38]}  Ba6 {[%clk 0:02:14]} 14. Rac1 {[%clk 0:02:31]}  b4 {[%clk 0:02:09]} 15. Bf1 {[%clk 0:02:29]}  Qb6 {[%clk 0:02:07]} 16. Nd3 {[%clk 0:02:16]}  Bc4 {[%clk 0:02:03]} 17. Qc2 {[%clk 0:02:14]}  b3 {[%clk 0:01:52]} 18. axb3 {[%clk 0:02:10]}  Bxb3 {[%clk 0:01:51]} 19. Qb1 {[%clk 0:01:54]}  Bxd1 {[%clk 0:01:49]} 20. Rxd1 {[%clk 0:01:55]}  Nc6 {[%clk 0:01:46]} 21. e3 {[%clk 0:01:54]}  Nb4 {[%clk 0:01:43]} 22. Be5 {[%clk 0:01:51]}  f6 {[%clk 0:01:42]} 0-1


[Site "https://www.chess.com"]

[Event "Titled Tuesday Blitz February 22 Early 2022"]
[White "Piliczewski, Bogusz"]
[Black "Sanchez, Robert"]
[WhiteFideId "1104144"]
[BlackFideId "2034360"]
[WhiteElo "1896"]
[BlackElo "2283"]
[Result "1-0"]
[Round "04"]
[TimeControl "180+1"]
[Date "2022.02.22"]
[WhiteClock "0:00:16"]
[BlackClock "0:00:03"]

1. d4 {[%clk 0:02:57]}  d5 {[%clk 0:02:52]} 2. Nf3 {[%clk 0:02:57]}  e6 {[%clk 0:02:50]} 3. Bf4 {[%clk 0:02:57]}  Nf6 {[%clk 0:02:47]} 4. e3 {[%clk 0:02:58]}  c5 {[%clk 0:02:44]} 5. c3 {[%clk 0:02:57]}  Nc6 {[%clk 0:02:42]} 6. Nbd2 {[%clk 0:02:56]}  Bd6 {[%clk 0:02:40]} 7. Bg3 {[%clk 0:02:56]}  Qc7 {[%clk 0:02:30]} 8. Bd3 {[%clk 0:02:51]}  cxd4 {[%clk 0:01:32]} 9. exd4 {[%clk 0:02:49]}  Nh5 {[%clk 0:01:24]} 10. O-O {[%clk 0:02:41]}  Nxg3 {[%clk 0:01:20]} 11. hxg3 {[%clk 0:02:40]}  h5 {[%clk 0:01:18]} 12. Qe2 {[%clk 0:02:34]}  g5 {[%clk 0:01:14]} 13. Nxg5 {[%clk 0:02:28]}  h4 {[%clk 0:01:13]} 14. g4 {[%clk 0:02:20]}  Bf4 {[%clk 0:01:07]} 15. Nh3 {[%clk 0:02:18]}  Bd6 {[%clk 0:01:04]} 16. f4 {[%clk 0:02:16]}  Bd7 {[%clk 0:01:01]} 17. Rac1 {[%clk 0:01:56]}  O-O-O {[%clk 0:00:59]} 18. Qe3 {[%clk 0:01:28]}  Rdg8 {[%clk 0:00:55]} 19. Be2 {[%clk 0:01:26]}  Ne7 {[%clk 0:00:49]} 20. c4 {[%clk 0:01:21]}  Kb8 {[%clk 0:00:45]} 21. cxd5 {[%clk 0:01:19]}  Qb6 {[%clk 0:00:44]} 22. dxe6 {[%clk 0:01:14]}  Bxe6 {[%clk 0:00:44]} 23. b3 {[%clk 0:00:59]}  Nd5 {[%clk 0:00:38]} 24. Qd3 {[%clk 0:00:53]}  Bxg4 {[%clk 0:00:36]} 25. Bxg4 {[%clk 0:00:47]}  Rxg4 {[%clk 0:00:36]} 26. Nc4 {[%clk 0:00:37]}  Qa6 {[%clk 0:00:18]} 27. Qf5 {[%clk 0:00:35]}  Rhg8 {[%clk 0:00:13]} 28. Qxd5 {[%clk 0:00:34]}  Rxg2+ {[%clk 0:00:12]} 29. Qxg2 {[%clk 0:00:34]}  Rxg2+ {[%clk 0:00:13]} 30. Kxg2 {[%clk 0:00:34]}  Qxa2+ {[%clk 0:00:12]} 31. Rf2 {[%clk 0:00:34]}  Qxb3 {[%clk 0:00:09]} 32. Nxd6 {[%clk 0:00:34]}  Qd5+ {[%clk 0:00:08]} 33. Kh2 {[%clk 0:00:33]}  Qxd6 {[%clk 0:00:09]} 34. Ng5 {[%clk 0:00:32]}  a5 {[%clk 0:00:08]} 35. Rd1 {[%clk 0:00:31]}  f6 {[%clk 0:00:07]} 36. Ne4 {[%clk 0:00:30]}  Qe6 {[%clk 0:00:06]} 37. Re2 {[%clk 0:00:29]}  Qg4 {[%clk 0:00:06]} 38. Re3 {[%clk 0:00:26]}  Qxf4+ {[%clk 0:00:05]} 39. Kg2 {[%clk 0:00:18]}  Qxe3 {[%clk 0:00:04]} 40. Nf2 {[%clk 0:00:16]}  Qg3+ {[%clk 0:00:02]} 41. Kf1 {[%clk 0:00:16]}  a4 {[%clk 0:00:03]} 42. Rd3 {[%clk 0:00:16]} 1-0


[Site "https://www.chess.com"]

[Event "Titled Tuesday Blitz February 22 Early 2022"]
[White "Pires, Marcos Vinicius Torsani"]
[Black "Mirzanurov, Bulat"]
[WhiteFideId "2118939"]
[BlackFideId "4184521"]
[WhiteElo "2273"]
[BlackElo "2116"]
[Result "1-0"]
[Round "04"]
[TimeControl "180+1"]
[Date "2022.02.22"]
[WhiteClock "0:01:28"]
[BlackClock "0:01:11"]

1. e4 {[%clk 0:03:00]}  c5 {[%clk 0:02:59]} 2. c3 {[%clk 0:02:53]}  d6 {[%clk 0:02:59]} 3. d4 {[%clk 0:02:51]}  Nf6 {[%clk 0:02:55]} 4. Bd3 {[%clk 0:02:50]}  cxd4 {[%clk 0:02:52]} 5. cxd4 {[%clk 0:02:50]}  e5 {[%clk 0:02:52]} 6. Nf3 {[%clk 0:02:48]}  Nc6 {[%clk 0:02:51]} 7. h3 {[%clk 0:02:40]}  Be7 {[%clk 0:02:49]} 8. O-O {[%clk 0:02:39]}  O-O {[%clk 0:02:46]} 9. d5 {[%clk 0:02:38]}  Nb8 {[%clk 0:02:45]} 10. Nc3 {[%clk 0:02:39]}  Nbd7 {[%clk 0:02:44]} 11. Be3 {[%clk 0:02:38]}  a6 {[%clk 0:02:43]} 12. a4 {[%clk 0:02:32]}  Nc5 {[%clk 0:02:37]} 13. Bxc5 {[%clk 0:02:31]}  dxc5 {[%clk 0:02:35]} 14. Nxe5 {[%clk 0:02:31]}  Bd6 {[%clk 0:02:34]} 15. Nc4 {[%clk 0:02:30]}  Re8 {[%clk 0:02:28]} 16. a5 {[%clk 0:02:23]}  Qc7 {[%clk 0:02:07]} 17. Nxd6 {[%clk 0:01:53]}  Qxd6 {[%clk 0:02:07]} 18. f4 {[%clk 0:01:53]}  c4 {[%clk 0:02:00]} 19. Bc2 {[%clk 0:01:54]}  Qc5+ {[%clk 0:02:00]} 20. Kh2 {[%clk 0:01:52]}  Nd7 {[%clk 0:01:38]} 21. e5 {[%clk 0:01:49]}  f6 {[%clk 0:01:28]} 22. Bxh7+ {[%clk 0:01:42]}  Kf8 {[%clk 0:01:19]} 23. e6 {[%clk 0:01:36]}  Nb8 {[%clk 0:01:17]} 24. Qh5 {[%clk 0:01:30]}  Re7 {[%clk 0:01:11]} 25. Bg6 {[%clk 0:01:28]} 1-0


[Site "https://www.chess.com"]

[Event "Titled Tuesday Blitz February 22 Early 2022"]
[White "Poormosavi, Seyed Kian"]
[Black "Lou, Yiping"]
[WhiteFideId "12585807"]
[BlackFideId "8603928"]
[WhiteElo "2553"]
[BlackElo "2809"]
[Result "1-0"]
[Round "04"]
[TimeControl "180+1"]
[Date "2022.02.22"]
[WhiteClock "0:01:12"]
[BlackClock "0:00:01"]

1. e4 {[%clk 0:02:58]}  c5 {[%clk 0:02:57]} 2. Nf3 {[%clk 0:02:59]}  d6 {[%clk 0:02:57]} 3. c3 {[%clk 0:02:59]}  Nf6 {[%clk 0:02:56]} 4. Bd3 {[%clk 0:02:58]}  Bg4 {[%clk 0:02:55]} 5. O-O {[%clk 0:02:58]}  Nc6 {[%clk 0:02:54]} 6. h3 {[%clk 0:02:58]}  Bh5 {[%clk 0:02:54]} 7. g4 {[%clk 0:02:57]}  Bg6 {[%clk 0:02:54]} 8. Qe2 {[%clk 0:02:57]}  e6 {[%clk 0:02:44]} 9. Bc2 {[%clk 0:02:51]}  d5 {[%clk 0:02:44]} 10. d3 {[%clk 0:02:51]}  Be7 {[%clk 0:02:41]} 11. Nbd2 {[%clk 0:02:49]}  Qc7 {[%clk 0:02:36]} 12. Re1 {[%clk 0:02:44]}  dxe4 {[%clk 0:02:20]} 13. dxe4 {[%clk 0:02:42]}  O-O-O {[%clk 0:02:16]} 14. a4 {[%clk 0:02:39]}  h5 {[%clk 0:02:10]} 15. g5 {[%clk 0:02:38]}  Nd7 {[%clk 0:02:05]} 16. Nc4 {[%clk 0:02:37]}  f6 {[%clk 0:02:02]} 17. e5 {[%clk 0:02:28]}  Bxc2 {[%clk 0:01:54]} 18. Qxc2 {[%clk 0:02:29]}  Ndxe5 {[%clk 0:01:52]} 19. Nfxe5 {[%clk 0:02:26]}  Nxe5 {[%clk 0:01:47]} 20. Nxe5 {[%clk 0:02:25]}  fxe5 {[%clk 0:01:43]} 21. h4 {[%clk 0:02:25]}  Kb8 {[%clk 0:01:30]} 22. Be3 {[%clk 0:02:18]}  Qc6 {[%clk 0:01:23]} 23. Qg6 {[%clk 0:02:14]}  Qf3 {[%clk 0:01:04]} 24. Qxe6 {[%clk 0:02:12]}  Bd6 {[%clk 0:01:03]} 25. Rad1 {[%clk 0:02:06]}  Rhe8 {[%clk 0:00:56]} 26. Qd5 {[%clk 0:02:01]}  e4 {[%clk 0:00:54]} 27. Kf1 {[%clk 0:01:52]}  Qh3+ {[%clk 0:00:47]} 28. Ke2 {[%clk 0:01:49]}  Qg4+ {[%clk 0:00:46]} 29. Kf1 {[%clk 0:01:47]}  Qxh4 {[%clk 0:00:39]} 30. Qf5 {[%clk 0:01:36]}  Rf8 {[%clk 0:00:32]} 31. Qe6 {[%clk 0:01:32]}  Qh1+ {[%clk 0:00:30]} 32. Ke2 {[%clk 0:01:32]}  Qf3+ {[%clk 0:00:28]} 33. Kd2 {[%clk 0:01:29]}  Bf4+ {[%clk 0:00:22]} 34. Kc2 {[%clk 0:01:28]}  Bxe3 {[%clk 0:00:22]} 35. fxe3 {[%clk 0:01:24]}  h4 {[%clk 0:00:17]} 36. Qe7 {[%clk 0:01:18]}  Rc8 {[%clk 0:00:15]} 37. Rd7 {[%clk 0:01:17]}  Qf2+ {[%clk 0:00:14]} 38. Kb3 {[%clk 0:01:17]}  c4+ {[%clk 0:00:12]} 39. Ka2 {[%clk 0:01:13]}  Ka8 {[%clk 0:00:07]} 40. Rxb7 {[%clk 0:01:13]}  Qc2 {[%clk 0:00:01]} 41. Rxa7+ {[%clk 0:01:12]} 1-0


[Site "https://www.chess.com"]